fUST/lending_fUST_20250729
["ID","MTS","AMOUNT","RATE_DAILY","PERIOD"]
[375914532,1753782657681,-71.30917669,0.0002,2]
[375914533,1753782657965,-96.6345,0.00019178,2]
[375914534,1753782657977,-363.3655,0.00019178,2]
[375914535,1753782657986,-1107.88082331,0.0002,2]
[375914536,1753782657996,-460.0,0.0002,2]
[375914537,1753782658005,-460.0,0.0002,2]
[375914538,1753782658015,-460.0,0.0002,2]
[375914539,1753782658023,-460.0,0.0002,2]
[375914540,1753782658032,-1500.74747341,0.0002,2]
[375914541,1753782658044,-1996.83040988,0.0002,2]
[375914542,1753782658055,-609.52765627,0.0002,2]
[375914543,1753782658066,-4365.24446044,0.0002,2]
[375914544,1753782658075,-548.14,0.0002,2]
[375914545,1753782658086,-169.60272768,0.0002,2]
[375914546,1753782658097,-460.0,0.0002,2]
[375914547,1753782658109,-460.0,0.0002,2]
[375914548,1753782658119,-460.0,0.0002,2]
[375914549,1753782658128,-351.95281188,0.0002,2]
[375914550,1753782658210,-1412.93986499,0.0002,2]
[375914551,1753782658221,-2460.49732313,0.0002,2]
[375914552,1753782658230,-460.0,0.0002,2]
[375914553,1753782658240,-460.0,0.0002,2]
[375914554,1753782658249,-460.0,0.0002,2]
[375914555,1753782658259,-460.0,0.0002,2]
[375914556,1753782658269,-460.0,0.0002,2]
[375914557,1753782658279,-460.0,0.0002,2]
[375914558,1753782658288,-734.13,0.0002,2]
[375914559,1753782658297,-460.0,0.0002,2]
[375914560,1753782658306,-460.0,0.0002,2]
[375914561,1753782658316,-3186.17,0.0002,2]
[375914562,1753782658325,-460.0,0.0002,2]
[375914563,1753782658334,-724.05,0.0002,2]
[375914564,1753782658344,-460.0,0.0002,2]
[375914565,1753782658355,-658.49,0.0002,2]
[375914566,1753782658369,-309.74560266,0.0002,2]
[375914567,1753782658380,-460.0,0.0002,2]
[375914568,1753782658389,-460.0,0.0002,2]
[375914569,1753782658399,-460.0,0.0002,2]
[375914570,1753782658411,-460.0,0.0002,2]
[375914571,1753782658422,-650.95,0.0002,2]
[375914572,1753782658430,-460.0,0.0002,2]
[375914573,1753782658440,-460.0,0.0002,2]
[375914574,1753782658450,-460.0,0.0002,2]
[375914575,1753782658531,-460.0,0.0002,2]
[375914576,1753782658541,-460.0,0.0002,2]
[375914577,1753782658550,-460.0,0.0002,2]
[375914578,1753782658560,-1092.65,0.0002,2]
[375914579,1753782658569,-2526.51,0.0002,2]
[375914580,1753782658578,-460.0,0.0002,2]
[375914581,1753782658587,-3898.51,0.0002,2]
[375914582,1753782658597,-1981.43,0.0002,2]
[375914583,1753782658606,-822.03,0.0002,2]
[375914584,1753782658616,-166.83171779,0.0002,2]
[375914585,1753782658625,-460.0,0.0002,2]
[375914586,1753782658634,-1480.64,0.0002,2]
[375914587,1753782658643,-594.45,0.0002,2]
[375914588,1753782658654,-458.41123233,0.0002,2]
[375914589,1753782658664,-862.9,0.0002,2]
[375914590,1753782658674,-2724.06,0.0002,2]
[375914591,1753782658684,-460.0,0.0002,2]
[375914592,1753782658695,-460.0,0.0002,2]
[375914593,1753782658704,-460.0,0.0002,2]
[375914594,1753782658714,-460.0,0.0002,2]
[375914595,1753782658724,-460.0,0.0002,2]
[375914596,1753782658734,-460.0,0.0002,2]
[375914597,1753782658744,-460.0,0.0002,2]
[375914598,1753782658753,-569.25810141,0.0002,2]
[375914599,1753782658763,-460.0,0.0002,2]
[375914600,1753782658773,-460.0,0.0002,2]
[375914601,1753782658783,-460.0,0.0002,2]
[375914602,1753782658794,-460.0,0.0002,2]
[375914603,1753782658803,-583.16,0.0002,2]
[375914604,1753782658813,-460.0,0.0002,2]
[375914605,1753782658824,-2538.59,0.0002,2]
[375914606,1753782658835,-460.0,0.0002,2]
[375914607,1753782658845,-460.0,0.0002,2]
[375914608,1753782658854,-460.0,0.0002,2]
[375914609,1753782658864,-460.0,0.0002,2]
[375914610,1753782658873,-460.0,0.0002,2]
[375914611,1753782658883,-460.0,0.0002,2]
[375914612,1753782658893,-460.0,0.0002,2]
[375914613,1753782658903,-894.33401272,0.0002,2]
[375914614,1753782658913,-460.0,0.0002,2]
[375914615,1753782658923,-3573.75871484,0.0002,2]
[375914616,1753782658933,-899.9,0.0002,2]
[375914617,1753782658944,-671.68,0.0002,2]
[375914618,1753782658956,-1272.96,0.0002,2]
[375914619,1753782658966,-460.0,0.0002,2]
[375914620,1753782658976,-460.0,0.0002,2]
[375914621,1753782658986,-2769.11,0.0002,2]
[375914622,1753782658996,-460.0,0.0002,2]
[375914623,1753782659005,-460.0,0.0002,2]
[375914624,1753782659014,-1066.81,0.0002,2]
[375914625,1753782659024,-460.0,0.0002,2]
[375914626,1753782659034,-460.0,0.0002,2]
[375914627,1753782659044,-460.0,0.0002,2]
[375914628,1753782659054,-460.0,0.0002,2]
[375914629,1753782659063,-460.0,0.0002,2]
[375914630,1753782659072,-857.02,0.0002,2]
[375914631,1753782659083,-2923.0,0.0002,2]
[375914632,1753782659095,-460.0,0.0002,2]
[375914633,1753782659107,-460.0,0.0002,2]
[375914634,1753782659116,-460.0,0.0002,2]
[375914635,1753782659127,-1269.55,0.0002,2]
[375914636,1753782659136,-460.0,0.0002,2]
[375914637,1753782659145,-1023.37,0.0002,2]
[375914638,1753782659155,-460.0,0.0002,2]
[375914639,1753782659164,-460.0,0.0002,2]
[375914640,1753782659174,-460.0,0.0002,2]
[375914641,1753782659183,-2522.88,0.0002,2]
[375914642,1753782659192,-460.0,0.0002,2]
[375914643,1753782659201,-460.0,0.0002,2]
[375914644,1753782659211,-460.0,0.0002,2]
[375914645,1753782659220,-460.0,0.0002,2]
[375914646,1753782659231,-460.0,0.0002,2]
[375914647,1753782659240,-174.37212101,0.0002,2]
[375914648,1753782659249,-2196.66,0.0002,2]
[375914649,1753782659258,-460.0,0.0002,2]
[375914650,1753782659268,-460.0,0.0002,2]
[375914651,1753782659277,-460.0,0.0002,2]
[375914652,1753782659286,-762.48,0.0002,2]
[375914653,1753782659295,-460.0,0.0002,2]
[375914654,1753782659304,-460.0,0.0002,2]
[375914655,1753782659313,-1202.48,0.0002,2]
[375914656,1753782659322,-500.0,0.00020021,2]
[375914657,1753782659332,-501.72687444,0.00020021,2]
[375914658,1753782659341,-503.53538674,0.00020021,2]
[375914659,1753782659350,-1000.0,0.00020021,2]
[375914660,1753782659360,-168.0,0.00020034,2]
[375914661,1753782659373,-6125.68,0.00020038,3]
[375914662,1753782659383,-3062.84,0.00020038,3]
[375914663,1753782659391,-2041.88,0.00020038,3]
[375914664,1753782659401,-1020.94,0.00020038,3]
[375914665,1753782659411,-510.48,0.00020038,3]
[375914666,1753782659420,-160.0,0.00020038,3]
[375914667,1753782659430,-165.60994688,0.00020038,3]
[375914668,1753782659439,-214.91980558,0.00020038,3]
[375914669,1753782659449,-12637.12721421,0.00020038,3]
[375914670,1753782659459,-1500.0,0.0002004,2]
[375914671,1753782659468,-888.32869581,0.00020107,2]
[375914672,1753782659478,-200.0,0.00020142,2]
[375914673,1753782659487,-168.0,0.00020156,2]
[375914674,1753782659496,-308.987487,0.00020187,2]
[375914675,1753782659506,-306.0,0.00020191,2]
[375914676,1753782659515,-153.0,0.00020191,2]
[375914677,1753782659525,-185.9198724,0.00020191,2]
[375914678,1753782659534,-163.8131639,0.00020191,2]
[375914679,1753782659543,-160.1053548,0.00020191,2]
[375914680,1753782659552,-178.4386705,0.00020191,2]
[375914681,1753782659562,-1500.0,0.00020268,2]
[375914682,1753782659571,-1000.0,0.00020268,2]
[375914683,1753782659581,-1755.0,0.00020271,2]
[375914684,1753782659590,-1755.0,0.00020271,2]
[375914685,1753782659600,-1755.0,0.00020271,2]
[375914686,1753782659610,-1755.0,0.00020271,2]
[375914687,1753782659620,-1755.0,0.00020271,2]
[375914688,1753782659631,-1755.0,0.00020271,2]
[375914689,1753782659640,-1755.0,0.00020271,2]
[375914690,1753782659650,-1755.0,0.00020271,2]
[375914691,1753782659660,-1755.0,0.00020271,2]
[375914692,1753782659670,-154.0,0.00020271,2]
[375914693,1753782659680,-156.60831965,0.00020271,2]
[375914694,1753782659689,-1755.0,0.00020271,2]
[375914695,1753782659699,-1755.0,0.00020271,2]
[375914696,1753782659708,-1755.0,0.00020271,2]
[375914697,1753782659718,-1755.0,0.00020271,2]
[375914698,1753782659727,-1775.03719754,0.00020271,2]
[375914699,1753782659737,-1268.96183926,0.00020271,2]
[375914700,1753782659746,-325.0,0.00020271,2]
[375914701,1753782659825,-325.0,0.00020271,2]
[375914702,1753782659834,-325.0,0.00020271,2]
[375914703,1753782659844,-325.0,0.00020271,2]
[375914704,1753782659854,-325.0,0.00020271,2]
[375914705,1753782659863,-325.0,0.00020271,2]
[375914706,1753782659872,-320.0,0.00020271,2]
[375914707,1753782659882,-2031.90763552,0.00020271,2]
[375914708,1753782659891,-18707.54300372,0.00020271,2]
[375914709,1753782659901,-507.01081272,0.00020273,2]
[375914710,1753782659911,-500.0,0.00020273,2]
[375914711,1753782659921,-502.15645192,0.00020273,2]
[375914712,1753782659931,-500.0,0.00020273,2]
[375914713,1753782659940,-500.0,0.00020273,2]
[375914714,1753782659950,-617.78639637,0.00020273,2]
[375914715,1753782659959,-224.7833921,0.00020273,2]
[375914716,1753782659968,-500.0,0.00020273,2]
[375914717,1753782659978,-500.0,0.00020273,2]
[375914718,1753782659987,-504.04765732,0.00020273,2]
[375914719,1753782659996,-500.0,0.00020273,2]
[375914720,1753782660006,-500.0,0.00020273,2]
[375914721,1753782660016,-502.20877685,0.00020273,2]
[375914722,1753782660025,-500.0,0.00020273,2]
[375914723,1753782660035,-500.0,0.00020273,2]
[375914724,1753782660044,-502.18683063,0.00020273,2]
[375914725,1753782660054,-500.0,0.00020273,2]
[375914726,1753782660064,-1132.20354176,0.00020273,2]
[375914727,1753782660073,-460.0,0.00020273,2]
[375914728,1753782660083,-460.0,0.00020273,2]
[375914729,1753782660092,-460.0,0.00020273,2]
[375914730,1753782660102,-460.0,0.00020273,2]
[375914731,1753782660111,-460.0,0.00020273,2]
[375914732,1753782660123,-460.0,0.00020273,2]
[375914733,1753782660132,-460.0,0.00020273,2]
[375914734,1753782660142,-460.0,0.00020273,2]
[375914735,1753782660151,-460.0,0.00020273,2]
[375914736,1753782660161,-460.0,0.00020273,2]
[375914737,1753782660170,-460.0,0.00020273,2]
[375914738,1753782660180,-477.87252492,0.00020273,2]
[375914739,1753782660189,-460.0,0.00020273,2]
[375914740,1753782660200,-460.0,0.00020273,2]
[375914741,1753782660210,-470.45389539,0.00020273,2]
[375914742,1753782660220,-460.0,0.00020273,2]
[375914743,1753782660230,-460.0,0.00020273,2]
[375914744,1753782660239,-666.55,0.00020273,2]
[375914745,1753782660248,-460.0,0.00020273,2]
[375914746,1753782660258,-460.0,0.00020273,2]
[375914747,1753782660268,-601.43046983,0.00020273,2]
[375914748,1753782660277,-460.0,0.00020273,2]
[375914749,1753782660287,-460.0,0.00020273,2]
[375914750,1753782660297,-460.0,0.00020273,2]
[375914751,1753782660307,-460.0,0.00020273,2]
[375914752,1753782660316,-460.0,0.00020273,2]
[375914753,1753782660326,-472.58164815,0.00020273,2]
[375914754,1753782660336,-1125.08,0.00020273,2]
[375914755,1753782660347,-709.74,0.00020273,2]
[375914756,1753782660357,-385.26758022,0.00020273,2]
[375914757,1753782660371,-460.0,0.00020273,2]
[375914758,1753782660381,-643.93,0.00020273,2]
[375914759,1753782660390,-460.0,0.00020273,2]
[375914760,1753782660400,-460.0,0.00020273,2]
[375914761,1753782660411,-599.42932843,0.00020273,2]
[375914762,1753782660420,-460.0,0.00020273,2]
[375914763,1753782660432,-619.41,0.00020273,2]
[375914764,1753782660443,-460.0,0.00020273,2]
[375914765,1753782660452,-460.0,0.00020273,2]
[375914766,1753782660461,-539.04,0.00020273,2]
[375914767,1753782660471,-460.0,0.00020273,2]
[375914768,1753782660480,-460.0,0.00020273,2]
[375914769,1753782660489,-460.0,0.00020273,2]
[375914770,1753782660498,-1303.99,0.00020273,2]
[375914771,1753782660507,-460.0,0.00020273,2]
[375914772,1753782660518,-460.0,0.00020273,2]
[375914773,1753782660527,-276.71472761,0.00020273,2]
[375914774,1753782660537,-460.0,0.00020273,2]
[375914775,1753782660546,-460.0,0.00020273,2]
[375914776,1753782660555,-460.0,0.00020273,2]
[375914777,1753782660564,-481.47,0.00020273,2]
[375914778,1753782660573,-460.0,0.00020273,2]
[375914779,1753782660582,-460.0,0.00020273,2]
[375914780,1753782660591,-460.0,0.00020273,2]
[375914781,1753782660601,-7547.36,0.00020273,2]
[375914782,1753782660610,-460.0,0.00020273,2]
[375914783,1753782660619,-460.0,0.00020273,2]
[375914784,1753782660629,-460.0,0.00020273,2]
[375914785,1753782660638,-456.31356584,0.00020273,2]
[375914786,1753782660647,-460.0,0.00020273,2]
[375914787,1753782660656,-460.0,0.00020273,2]
[375914788,1753782660665,-460.0,0.00020273,2]
[375914789,1753782660676,-460.0,0.00020273,2]
[375914790,1753782660686,-460.0,0.00020273,2]
[375914791,1753782660695,-470.88758111,0.00020273,2]
[375914792,1753782660705,-460.0,0.00020273,2]
[375914793,1753782660715,-562.79,0.00020273,2]
[375914794,1753782660724,-460.0,0.00020273,2]
[375914795,1753782660734,-460.0,0.00020273,2]
[375914796,1753782660743,-460.0,0.00020273,2]
[375914797,1753782660752,-511.22,0.00020273,2]
[375914798,1753782660762,-521.08,0.00020273,2]
[375914799,1753782660771,-460.0,0.00020273,2]
[375914800,1753782660781,-460.0,0.00020273,2]
[375914801,1753782660790,-460.0,0.00020273,2]
[375914802,1753782660800,-460.0,0.00020273,2]
[375914803,1753782660809,-460.0,0.00020273,2]
[375914804,1753782660818,-460.0,0.00020273,2]
[375914805,1753782660828,-460.0,0.00020273,2]
[375914806,1753782660837,-460.0,0.00020273,2]
[375914807,1753782660847,-460.0,0.00020273,2]
[375914808,1753782660856,-489.19,0.00020273,2]
[375914809,1753782660865,-1247.76,0.00020273,2]
[375914810,1753782660875,-360.21536538,0.00020273,2]
[375914811,1753782660884,-460.0,0.00020273,2]
[375914812,1753782660895,-460.0,0.00020273,2]
[375914813,1753782660904,-460.0,0.00020273,2]
[375914814,1753782660914,-460.0,0.00020273,2]
[375914815,1753782660926,-460.0,0.00020273,2]
[375914816,1753782660997,-460.0,0.00020273,2]
[375914817,1753782661012,-460.0,0.00020273,2]
[375914818,1753782661023,-460.0,0.00020273,2]
[375914819,1753782661033,-486.09,0.00020273,2]
[375914820,1753782661042,-3133.25,0.00020273,2]
[375914821,1753782661051,-203.90720996,0.00020273,2]
[375914822,1753782661072,-460.0,0.00020273,2]
[375914823,1753782661084,-460.0,0.00020273,2]
[375914824,1753782661095,-460.0,0.00020273,2]
[375914825,1753782661105,-528.43,0.00020273,2]
[375914826,1753782661115,-460.0,0.00020273,2]
[375914827,1753782661125,-938.9,0.00020273,2]
[375914828,1753782661135,-3344.76,0.00020273,2]
[375914829,1753782661146,-460.0,0.00020273,2]
[375914830,1753782661156,-460.0,0.00020273,2]
[375914831,1753782661165,-460.0,0.00020273,2]
[375914832,1753782661178,-460.0,0.00020273,2]
[375914833,1753782661188,-460.0,0.00020273,2]
[375914834,1753782661198,-460.0,0.00020273,2]
[375914835,1753782661207,-460.0,0.00020273,2]
[375914836,1753782661218,-460.0,0.00020273,2]
[375914837,1753782661228,-460.0,0.00020273,2]
[375914838,1753782661238,-460.0,0.00020273,2]
[375914839,1753782661248,-460.0,0.00020273,2]
[375914840,1753782661258,-347.12730531,0.00020273,2]
[375914841,1753782661268,-460.0,0.00020273,2]
[375914842,1753782661277,-460.0,0.00020273,2]
[375914843,1753782661287,-460.0,0.00020273,2]
[375914844,1753782661297,-698.28,0.00020273,2]
[375914845,1753782661306,-512.31,0.00020273,2]
[375914846,1753782661317,-460.0,0.00020273,2]
[375914847,1753782661326,-929.82,0.00020273,2]
[375914848,1753782661336,-1179.19,0.00020273,2]
[375914849,1753782661346,-460.0,0.00020273,2]
[375914850,1753782661356,-460.0,0.00020273,2]
[375914851,1753782661367,-460.0,0.00020273,2]
[375914852,1753782661378,-460.0,0.00020273,2]
[375914853,1753782661387,-548.14,0.00020273,2]
[375914854,1753782661398,-460.0,0.00020273,2]
[375914855,1753782661408,-8472.35,0.00020273,2]
[375914856,1753782661418,-460.0,0.00020273,2]
[375914857,1753782661430,-460.0,0.00020273,2]
[375914858,1753782661441,-4225.39,0.00020273,2]
[375914859,1753782661451,-460.0,0.00020273,2]
[375914860,1753782661461,-460.0,0.00020273,2]
[375914861,1753782661470,-182.01226008,0.00020273,2]
[375914862,1753782661479,-460.0,0.00020273,2]
[375914863,1753782661490,-460.0,0.00020273,2]
[375914864,1753782661499,-734.13,0.00020273,2]
[375914865,1753782661509,-460.0,0.00020273,2]
[375914866,1753782661519,-460.0,0.00020273,2]
[375914867,1753782661529,-3186.17,0.00020273,2]
[375914868,1753782661538,-460.0,0.00020273,2]
[375914869,1753782661554,-724.05,0.00020273,2]
[375914870,1753782661582,-460.0,0.00020273,2]
[375914871,1753782661603,-658.49,0.00020273,2]
[375914872,1753782661623,-460.0,0.00020273,2]
[375914873,1753782661644,-460.0,0.00020273,2]
[375914874,1753782661664,-460.0,0.00020273,2]
[375914875,1753782661694,-460.0,0.00020273,2]
[375914876,1753782661712,-650.95,0.00020273,2]
[375914877,1753782661728,-460.0,0.00020273,2]
[375914878,1753782661747,-195.98645433,0.00020273,2]
[375914879,1753782661765,-460.0,0.00020273,2]
[375914880,1753782661785,-460.0,0.00020273,2]
[375914881,1753782661798,-1092.65,0.00020273,2]
[375914882,1753782661819,-2526.51,0.00020273,2]
[375914883,1753782661833,-460.0,0.00020273,2]
[375914884,1753782661850,-3898.51,0.00020273,2]
[375914885,1753782661866,-1981.43,0.00020273,2]
[375914886,1753782661885,-822.03,0.00020273,2]
[375914887,1753782661903,-460.0,0.00020273,2]
[375914888,1753782661920,-1480.64,0.00020273,2]
[375914889,1753782661939,-594.45,0.00020273,2]
[375914890,1753782661955,-862.9,0.00020273,2]
[375914891,1753782661971,-2724.06,0.00020273,2]
[375914892,1753782661986,-460.0,0.00020273,2]
[375914893,1753782662002,-460.0,0.00020273,2]
[375914894,1753782662017,-460.0,0.00020273,2]
[375914895,1753782662032,-460.0,0.00020273,2]
[375914896,1753782662047,-460.0,0.00020273,2]
[375914897,1753782662061,-460.0,0.00020273,2]
[375914898,1753782662076,-460.0,0.00020273,2]
[375914899,1753782662091,-460.0,0.00020273,2]
[375914900,1753782662105,-460.0,0.00020273,2]
[375914901,1753782662120,-583.16,0.00020273,2]
[375914902,1753782662134,-2538.59,0.00020273,2]
[375914903,1753782662156,-460.0,0.00020273,2]
[375914904,1753782662171,-460.0,0.00020273,2]
[375914905,1753782662186,-460.0,0.00020273,2]
[375914906,1753782662196,-460.0,0.00020273,2]
[375914907,1753782662211,-460.0,0.00020273,2]
[375914908,1753782662220,-460.0,0.00020273,2]
[375914909,1753782662230,-460.0,0.00020273,2]
[375914910,1753782662239,-466.04290391,0.00020273,2]
[375914911,1753782662250,-899.9,0.00020273,2]
[375914912,1753782662260,-671.68,0.00020273,2]
[375914913,1753782662269,-1272.96,0.00020273,2]
[375914914,1753782662278,-460.0,0.00020273,2]
[375914915,1753782662288,-460.0,0.00020273,2]
[375914916,1753782662297,-2769.11,0.00020273,2]
[375914917,1753782662307,-460.0,0.00020273,2]
[375914918,1753782662316,-460.0,0.00020273,2]
[375914919,1753782662326,-1066.81,0.00020273,2]
[375914920,1753782662336,-460.0,0.00020273,2]
[375914921,1753782662345,-460.0,0.00020273,2]
[375914922,1753782662354,-460.0,0.00020273,2]
[375914923,1753782662545,-2923.0,0.00020273,2]
[375914924,1753782662564,-460.0,0.00020273,2]
[375914925,1753782662574,-460.0,0.00020273,2]
[375914926,1753782662584,-460.0,0.00020273,2]
[375914927,1753782662593,-1269.55,0.00020273,2]
[375914928,1753782662603,-857.02,0.00020273,2]
[375914929,1753782662612,-460.0,0.00020273,2]
[375914930,1753782662622,-1023.37,0.00020273,2]
[375914931,1753782662631,-460.0,0.00020273,2]
[375914932,1753782662640,-460.0,0.00020273,2]
[375914933,1753782662650,-460.0,0.00020273,2]
[375914934,1753782662659,-460.0,0.00020273,2]
[375914935,1753782662668,-2522.88,0.00020273,2]
[375914936,1753782662678,-505.09,0.00020273,2]
[375914937,1753782662687,-460.0,0.00020273,2]
[375914938,1753782662697,-460.0,0.00020273,2]
[375914939,1753782662706,-460.0,0.00020273,2]
[375914940,1753782662716,-2196.66,0.00020273,2]
[375914941,1753782662725,-460.0,0.00020273,2]
[375914942,1753782662735,-460.0,0.00020273,2]
[375914943,1753782662744,-460.0,0.00020273,2]
[375914944,1753782662753,-762.48,0.00020273,2]
[375914945,1753782662762,-460.0,0.00020273,2]
[375914946,1753782662772,-460.0,0.00020273,2]
[375914947,1753782662782,-1202.48,0.00020273,2]
[375914948,1753782662791,-500.0,0.00020274,2]
[375914949,1753782662801,-888.32869581,0.00020279,3]
[375914950,1753782662810,-1680.0,0.0002028,2]
[375914951,1753782662820,-165.0,0.0002028,2]
[375914952,1753782662829,-420.0,0.0002028,2]
[375914953,1753782662838,-420.0,0.0002028,2]
[375914954,1753782662847,-420.0,0.0002028,2]
[375914955,1753782662857,-420.0,0.0002028,2]
[375914956,1753782662867,-168.0,0.0002029,2]
[375914957,1753782662877,-168.0,0.00020302,2]
[375914958,1753782662886,-1802.95474049,0.00020305,2]
[375914959,1753782662896,-642.0,0.00020355,2]
[375914960,1753782662905,-642.0,0.00020362,2]
[375914961,1753782662915,-1680.0,0.00020379,2]
[375914962,1753782662925,-151.0,0.000204,4]
[375914963,1753782662935,-168.0,0.00020447,2]
[375914964,1753782662945,-888.32869581,0.00020452,3]
[375914965,1753782662954,-168.0,0.00020474,2]
[375914966,1753782662964,-168.0,0.00020476,2]
[375914967,1753782662973,-501.69513984,0.000205,2]
[375914968,1753782662982,-460.0,0.00020547,2]
[375914969,1753782662991,-460.0,0.00020547,2]
[375914970,1753782663001,-460.0,0.00020547,2]
[375914971,1753782663011,-460.0,0.00020547,2]
[375914972,1753782663020,-460.0,0.00020547,2]
[375914973,1753782663030,-460.0,0.00020547,2]
[375914974,1753782663039,-202.76372487,0.00020547,2]
[375914975,1753782663049,-460.0,0.00020547,2]
[375914976,1753782663058,-460.0,0.00020547,2]
[375914977,1753782663067,-666.55,0.00020547,2]
[375914978,1753782663076,-460.0,0.00020547,2]
[375914979,1753782663086,-460.0,0.00020547,2]
[375914980,1753782663095,-460.0,0.00020547,2]
[375914981,1753782663113,-460.0,0.00020547,2]
[375914982,1753782663125,-460.0,0.00020547,2]
[375914983,1753782663135,-460.0,0.00020547,2]
[375914984,1753782663145,-327.9035012,0.00020547,2]
[375914985,1753782663155,-1125.08,0.00020547,2]
[375914986,1753782663165,-709.74,0.00020547,2]
[375914987,1753782663176,-583.23312618,0.00020547,2]
[375914988,1753782663186,-643.93,0.00020547,2]
[375914989,1753782663196,-140.35953009,0.00020547,2]
[375914990,1753782663619,-319.64046991,0.00020547,2]
[375914991,1753782663629,-460.0,0.00020547,2]
[375914992,1753782663639,-460.0,0.00020547,2]
[375914993,1753782663648,-619.41,0.00020547,2]
[375914994,1753782663658,-460.0,0.00020547,2]
[375914995,1753782663668,-131.98195761,0.00020547,2]
[375914996,1753782663783,-328.01804239,0.00020547,2]
[375914997,1753782663792,-539.04,0.00020547,2]
[375914998,1753782663802,-460.0,0.00020547,2]
[375914999,1753782663812,-460.0,0.00020547,2]
[375915000,1753782663822,-460.0,0.00020547,2]
[375915001,1753782663832,-1303.99,0.00020547,2]
[375915002,1753782663842,-460.0,0.00020547,2]
[375915003,1753782663851,-460.0,0.00020547,2]
[375915004,1753782663861,-460.0,0.00020547,2]
[375915005,1753782663870,-460.0,0.00020547,2]
[375915006,1753782663881,-460.0,0.00020547,2]
[375915007,1753782663891,-481.47,0.00020547,2]
[375915008,1753782663901,-460.0,0.00020547,2]
[375915009,1753782663911,-460.0,0.00020547,2]
[375915010,1753782663921,-460.0,0.00020547,2]
[375915011,1753782663931,-2854.88364877,0.00020547,2]
[375915012,1753782732830,-1200.0,0.00019177,2]
[375915013,1753782732851,-300.0,0.00019177,2]
[375915014,1753782732872,-460.0,0.00019178,2]
[375915015,1753782732892,-460.57828128,0.00019178,2]
[375915016,1753782732912,-460.0,0.00019178,2]
[375915017,1753782732933,-535.76689433,0.00019178,2]
[375915018,1753782732954,-460.0,0.00019178,2]
[375915019,1753782732975,-460.0,0.00019178,2]
[375915020,1753782732996,-460.0,0.00019178,2]
[375915021,1753782733015,-460.09179567,0.00019178,2]
[375915022,1753782733036,-460.0,0.00019178,2]
[375915023,1753782733056,-460.0,0.00019178,2]
[375915024,1753782733076,-460.0,0.00019178,2]
[375915025,1753782733098,-460.0,0.00019178,2]
[375915026,1753782733118,-460.0,0.00019178,2]
[375915027,1753782733140,-460.0,0.00019178,2]
[375915028,1753782733161,-460.0,0.00019178,2]
[375915029,1753782733181,-460.0,0.00019178,2]
[375915030,1753782733203,-560.43,0.00019178,2]
[375915031,1753782733228,-460.0,0.00019178,2]